fUST/lending_fUST_20260517
["ID","MTS","AMOUNT","RATE_DAILY","PERIOD"]
[422506154,1779005447000,-185.0,8.646e-05,2]
[422506164,1779005447000,-500.0,9.321e-05,2]
[422506156,1779005447000,-5491.7282665,8.952e-05,2]
[422506157,1779005447000,-249.538,9.04e-05,2]
[422506158,1779005447000,-537.6845,9.268e-05,2]
[422506159,1779005447000,-500.0,9.321e-05,2]
[422506160,1779005447000,-383.45085849,9.321e-05,2]
[422506161,1779005447000,-500.0,9.321e-05,2]
[422506162,1779005447000,-500.0,9.321e-05,2]
[422506163,1779005447000,-500.0,9.321e-05,2]
[422506155,1779005447000,-443.0,8.646e-05,2]
[422506165,1779005448000,-500.0,9.321e-05,2]
[422506166,1779005448000,-441.15786339,9.321e-05,2]
[422506168,1779005448000,-500.0,9.334e-05,2]
[422506167,1779005448000,-557.5788265,9.323e-05,2]
[422506169,1779005448000,-21.21298919,9.378e-05,2]
[422506170,1779005448000,-556.99625389,9.378e-05,2]
[422506173,1779005448000,-160.0,9.6e-05,2]
[422506171,1779005448000,-537.6845,9.433e-05,2]
[422506174,1779005448000,-160.0,9.6e-05,2]
[422506176,1779005448000,-184.18125737,9.835e-05,2]
[422506177,1779005448000,-6249.93353569,9.835e-05,2]
[422506172,1779005448000,-160.0,9.6e-05,2]
[422506175,1779005448000,-220.1268456,9.628e-05,2]
[422506185,1779005490000,200.0,0.0001076,120]
[422506186,1779005550000,200.0,0.00014525,120]
[422506297,1779005670000,200.0,0.00016484,120]
[422506299,1779005790000,200.0,0.00017616,120]
[422506340,1779006022000,169.3715116,4.403e-05,2]
[422506341,1779006030000,200.0,0.00017302,120]
[422506369,1779006210000,200.0,0.00017733,120]
[422506373,1779006357000,785.75,0.000178,120]
[422506400,1779006632000,-134.10750356,7.862e-05,2]
[422506413,1779006632000,-1077.09427844,7.862e-05,2]
[422506419,1779006632000,-856.38739121,8.021e-05,2]
[422506417,1779006632000,-343.47167117,7.941e-05,2]
[422506415,1779006632000,-3788.798218,7.862e-05,2]
[422507645,1779006647000,-2693.02923747,7.941e-05,2]
[422507649,1779006647000,-530.0,8.959e-05,2]
[422507647,1779006647000,-447.68894388,8.309e-05,2]
[422507651,1779006647000,-443.0,8.96e-05,2]
[422507659,1779006647000,-300.0,9.304e-05,2]
[422507653,1779006647000,-185.0,8.96e-05,2]
[422507643,1779006647000,-444.16294323,7.862e-05,2]
[422507655,1779006647000,-160.0,9.302e-05,2]
[422507657,1779006647000,-160.0,9.303e-05,2]
[422507663,1779006647000,-500.0,9.335e-05,2]
[422507666,1779006647000,-151.2922045,9.57e-05,2]
[422507668,1779006647000,-160.0,9.619e-05,2]
[422507670,1779006647000,-2367.107076,9.835e-05,2]
[422507672,1779006647000,-3189.37807407,9.835e-05,2]
[422507661,1779006647000,-300.0,9.304e-05,2]
[422508946,1779006751000,200.0,0.00014098,120]
[422508947,1779006773000,169.37151,4.442e-05,2]
[422508948,1779006810000,200.0,0.00012403,120]
[422508949,1779006870000,200.0,0.00015706,120]
[422508954,1779007050000,200.0,0.00016935,120]
[422509002,1779007831000,-295.59680226,5.499e-05,2]
[422508988,1779007831000,-5000.0,5.187e-05,2]
[422508990,1779007831000,-464.4970259,5.326e-05,2]
[422508992,1779007831000,-1200.0,5.498e-05,2]
[422508999,1779007831000,-384.15552416,5.499e-05,2]
[422509004,1779007831000,-300.0,5.499e-05,2]
[422509005,1779007831000,-866.25139874,5.5e-05,2]
[422509003,1779007831000,-300.0,5.499e-05,2]
[422508994,1779007831000,-520.24767358,5.499e-05,2]
[422509007,1779007831000,-169.37151,5.509e-05,2]
[422509012,1779007831000,-169.37151,6.576e-05,2]
[422509009,1779007831000,-2819.92130207,6.014e-05,2]
[422509013,1779007831000,-3338.32133564,6.69e-05,2]
[422509006,1779007831000,-1683.10670663,5.5e-05,2]
[422509010,1779007831000,-346.0,6.048e-05,2]
[422509011,1779007831000,-3316.81732241,6.352e-05,2]
[422509008,1779007831000,-2499.96201452,5.676e-05,2]
[422509014,1779007831000,-14999.49125214,6.69e-05,2]
[422509035,1779007837000,-500.0,7.703e-05,2]
[422509024,1779007837000,-7274.25974528,6.69e-05,2]
[422509026,1779007837000,-3856.72136931,7.028e-05,2]
[422509028,1779007837000,-548.10649057,7.326e-05,2]
[422509037,1779007837000,-500.0,7.703e-05,2]
[422509030,1779007837000,-4133.67263031,7.366e-05,2]
[422509039,1779007837000,-500.0,7.703e-05,2]
[422509045,1779007837000,-4893.52143666,8.042e-05,2]
[422509049,1779007837000,-169.37151,8.71e-05,2]
[422509041,1779007837000,-493.21212658,7.703e-05,2]
[422509032,1779007837000,-169.37151,7.643e-05,2]
[422509047,1779007837000,-4950.5279382,8.38e-05,2]
[422509043,1779007837000,-4375.12140299,7.704e-05,2]
[422509078,1779007838000,-199.63,9.729e-05,2]
[422509080,1779007838000,-22768.21928636,9.729e-05,2]
[422509076,1779007838000,-325.9079251,9.612e-05,2]
[422509072,1779007838000,-161.67668242,9.281e-05,2]
[422509082,1779007838000,-6207.0816874,9.732e-05,2]
[422509084,1779007838000,-10598.81071175,9.8e-05,2]
[422509066,1779007838000,-2387.2146246,9.394e-05,2]
[422509064,1779007838000,-500.0,9.335e-05,2]
[422509062,1779007838000,-631.71595523,9.326e-05,2]
[422509054,1779007838000,-5495.86863845,9.056e-05,2]
[422509056,1779007838000,-160.0,9.191e-05,2]
[422509060,1779007838000,-185.0,9.26e-05,2]
[422509051,1779007838000,-5411.92147034,8.718e-05,2]
[422509074,1779007838000,-3543.10687941,9.394e-05,2]
[422509058,1779007838000,-160.0,9.191e-05,2]
[422509086,1779007838000,-917.46723169,9.8e-05,2]
[422509098,1779007838000,-854.47161031,9.82e-05,2]
[422509116,1779007838000,-854.47161031,9.82e-05,2]
[422509118,1779007838000,-4994.06920257,9.821e-05,2]
[422509120,1779007838000,-1000.014498,9.821e-05,2]
[422509114,1779007838000,-854.47161031,9.82e-05,2]
[422509096,1779007838000,-854.47161031,9.82e-05,2]
[422509112,1779007838000,-854.47161031,9.82e-05,2]
[422509092,1779007838000,-854.47161031,9.82e-05,2]
[422509109,1779007838000,-854.47161031,9.82e-05,2]
[422509107,1779007838000,-854.47161031,9.82e-05,2]
[422509090,1779007838000,-854.47161031,9.82e-05,2]
[422509104,1779007838000,-854.47161031,9.82e-05,2]
[422509105,1779007838000,-854.47161031,9.82e-05,2]
[422509102,1779007838000,-854.47161031,9.82e-05,2]
[422509088,1779007838000,-533.95520895,9.82e-05,2]
[422509094,1779007838000,-854.47161031,9.82e-05,2]
[422509100,1779007838000,-854.47161031,9.82e-05,2]
[422509373,1779007840000,-845.15949572,9.821e-05,2]
[422509365,1779007840000,-2258.40144417,9.821e-05,2]
[422509761,1779007843000,-17920.87812968,9.831e-05,2]
[422509759,1779007843000,-5000.0,9.723e-05,2]
[422509797,1779007843000,-1559.0,9.831e-05,2]
[422510197,1779007846000,-953.19461368,9.831e-05,2]
[422510203,1779007846000,-22299.98113014,9.831e-05,2]
[422510245,1779008962000,3015.0,0.00017808,120]
[422510296,1779009032000,-447.45061273,7.562e-05,2]
[422510300,1779009032000,-1200.0,7.599e-05,2]
[422510298,1779009032000,-318.0,7.598e-05,2]
[422510302,1779009032000,-95.07776974,7.599e-05,2]
[422510294,1779009032000,-5000.0,7.449e-05,2]
[422510398,1779009038000,-443.0,9.26e-05,2]
[422510404,1779009038000,-258.69996456,9.335e-05,2]
[422510394,1779009038000,-300.0,8.31e-05,2]
[422510401,1779009038000,-160.0,9.269e-05,2]
[422510391,1779009038000,-5000.0,7.375e-05,2]
[422510402,1779009038000,-161.67668242,9.269e-05,2]
[422510392,1779009038000,-204.92223026,7.599e-05,2]
[422510403,1779009038000,-7915.8197669,9.286e-05,2]
[422510395,1779009038000,-1680.0,8.359e-05,2]
[422510393,1779009038000,-5295.81772407,7.6e-05,2]
[422510400,1779009038000,-160.0,9.268e-05,2]
[422510396,1779009038000,-4514.4402316,9.123e-05,2]
[422510399,1779009038000,-185.0,9.26e-05,2]
[422510412,1779009038000,-13607.10615054,9.609e-05,2]
[422510406,1779009038000,-200.0,9.51e-05,2]
[422510405,1779009038000,-500.0,9.335e-05,2]
[422510408,1779009038000,-527.99172302,9.562e-05,2]
[422510409,1779009038000,-10555.21281197,9.609e-05,2]
[422510410,1779009038000,-5883.76210225,9.609e-05,2]
[422510411,1779009038000,-39870.57879421,9.609e-05,2]
[422510397,1779009038000,-246.208,9.26e-05,2]
[422510417,1779009040000,-350.78342416,9.609e-05,2]
[422510455,1779009043000,-1240.0,9.609e-05,2]
[422510454,1779009043000,-256.2,9.609e-05,2]
[422510465,1779009046000,-602.26837727,9.612e-05,2]
[422510464,1779009046000,-28236.35671687,9.609e-05,2]
[422510467,1779009046000,-6127.6893639,9.613e-05,2]
[422510468,1779009046000,-484.14,9.613e-05,2]
[422510466,1779009046000,-42270.71418658,9.613e-05,2]
[422510576,1779010241000,-300.0,9.448e-05,2]
[422510566,1779010241000,-587.81482829,8.352e-05,2]
[422510568,1779010241000,-2737.87171122,8.436e-05,2]
[422510570,1779010241000,-159.35463514,8.863e-05,2]
[422510569,1779010241000,-443.48681545,8.479e-05,2]
[422510571,1779010241000,-636.78112204,8.863e-05,2]
[422510573,1779010241000,-500.0,9.408e-05,2]
[422510572,1779010241000,-1151.0,9.406e-05,2]
[422510574,1779010241000,-300.0,9.448e-05,2]
[422510577,1779010241000,-582.0,9.449e-05,2]
[422510567,1779010241000,-2262.12828878,8.436e-05,2]
[422510580,1779010241000,-161.67668242,9.497e-05,2]
[422510579,1779010241000,-160.0,9.497e-05,2]
[422510575,1779010241000,-300.0,9.448e-05,2]
[422510581,1779010241000,-160.0,9.498e-05,2]
[422510582,1779010241000,-185.0,9.538e-05,2]
[422510583,1779010241000,-200.11331405,9.6e-05,2]
[422510585,1779010241000,-221.46801406,9.73e-05,2]
[422510586,1779010241000,-8864.84695312,9.731e-05,2]
[422510587,1779010241000,-18468.42925953,9.731e-05,2]
[422510584,1779010241000,-216.699,9.6e-05,2]
[422510588,1779010241000,-2873.40886433,9.731e-05,2]
[422510578,1779010241000,-2160.3635923,9.451e-05,2]
[422510608,1779010247000,-3442.98,9.731e-05,2]
[422510609,1779010247000,-3513.7787064,9.731e-05,2]
[422510671,1779011432000,-986.85210424,7.923e-05,2]
[422510664,1779011432000,-586.94081868,7.923e-05,2]
[422510672,1779011432000,-841.74941837,8.003e-05,2]
[422510733,1779011438000,-185.0,9.611e-05,2]
[422510736,1779011438000,-473.65994126,9.614e-05,2]
[422510734,1779011438000,-443.0,9.611e-05,2]
[422510735,1779011438000,-970.01546013,9.614e-05,2]
[422510722,1779011438000,-500.0,9.519e-05,2]
[422510721,1779011438000,-537.6845,9.519e-05,2]
[422510720,1779011438000,-63009.61844239,9.517e-05,2]
[422510715,1779011438000,-577.72,8.94e-05,2]
[422510716,1779011438000,-500.0,9e-05,2]
[422510718,1779011438000,-500.0,9.413e-05,2]
[422510714,1779011438000,-500.0,8.94e-05,2]
[422510717,1779011438000,-2749.9640364,9.393e-05,2]
[422510712,1779011438000,-500.0,8.94e-05,2]
[422510707,1779011438000,-500.0,8.94e-05,2]
[422510713,1779011438000,-500.0,8.94e-05,2]
[422510708,1779011438000,-500.0,8.94e-05,2]
[422510710,1779011438000,-500.0,8.94e-05,2]
[422510719,1779011438000,-500.0,9.5e-05,2]
[422510709,1779011438000,-500.0,8.94e-05,2]
[422510706,1779011438000,-500.0,8.94e-05,2]
[422510699,1779011438000,-4158.25058163,8.003e-05,2]
[422510702,1779011438000,-160.0,8.925e-05,2]
[422510703,1779011438000,-161.67668242,8.925e-05,2]
[422510701,1779011438000,-160.0,8.925e-05,2]
[422510705,1779011438000,-300.0,8.939e-05,2]
[422510704,1779011438000,-160.0,8.925e-05,2]
[422510700,1779011438000,-450.27070017,8.29e-05,2]
[422510731,1779011438000,-226.284,9.611e-05,2]
[422510711,1779011438000,-500.0,8.94e-05,2]
[422510737,1779011438000,-970.01546013,9.614e-05,2]
[422510729,1779011438000,-324.60153014,9.574e-05,2]
[422510724,1779011438000,-4134.64285392,9.525e-05,2]
[422510727,1779011438000,-13121.95036625,9.525e-05,2]
[422510764,1779011438000,-650.0,9.731e-05,2]
[422510766,1779011438000,-650.0,9.731e-05,2]
[422510765,1779011438000,-650.0,9.731e-05,2]
[422510762,1779011438000,-650.0,9.731e-05,2]
[422510763,1779011438000,-650.0,9.731e-05,2]
[422510759,1779011438000,-650.0,9.731e-05,2]
[422510758,1779011438000,-335.82966298,9.718e-05,2]
[422510760,1779011438000,-650.0,9.731e-05,2]
[422510757,1779011438000,-151.0,9.711e-05,2]
[422510752,1779011438000,-151.0,9.63e-05,2]
[422510756,1779011438000,-500.0,9.68e-05,7]
[422510755,1779011438000,-500.0,9.68e-05,7]
[422510753,1779011438000,-335.82966298,9.63e-05,2]
[422510761,1779011438000,-650.0,9.731e-05,2]
[422510751,1779011438000,-100000.0,9.615e-05,2]
[422510738,1779011438000,-970.01546013,9.614e-05,2]
[422510754,1779011438000,-500.0,9.631e-05,2]
[422510740,1779011438000,-970.01546013,9.614e-05,2]
[422510739,1779011438000,-970.01546013,9.614e-05,2]
[422510748,1779011438000,-970.01546013,9.614e-05,2]
[422510746,1779011438000,-970.01546013,9.614e-05,2]
[422510744,1779011438000,-970.01546013,9.614e-05,2]
[422510742,1779011438000,-970.01546013,9.614e-05,2]
[422510743,1779011438000,-970.01546013,9.614e-05,2]
[422510745,1779011438000,-970.01546013,9.614e-05,2]
[422510747,1779011438000,-970.01546013,9.614e-05,2]
[422510749,1779011438000,-970.01546013,9.614e-05,2]
[422510750,1779011438000,-970.01546013,9.614e-05,2]
[422510741,1779011438000,-970.01546013,9.614e-05,2]
[422510793,1779011439000,-650.0,9.731e-05,2]
[422510792,1779011439000,-650.0,9.731e-05,2]
[422510791,1779011439000,-650.0,9.731e-05,2]
[422510795,1779011439000,-650.0,9.731e-05,2]
[422510790,1779011439000,-650.0,9.731e-05,2]
[422510789,1779011439000,-650.0,9.731e-05,2]
[422510794,1779011439000,-164.0,9.731e-05,2]
[422510788,1779011439000,-650.0,9.731e-05,2]
[422510799,1779011439000,-650.0,9.731e-05,2]
[422510796,1779011439000,-164.0,9.731e-05,2]
[422510798,1779011439000,-167.04656377,9.731e-05,2]
[422510807,1779011439000,-650.0,9.731e-05,2]
[422510806,1779011439000,-650.0,9.731e-05,2]
[422510809,1779011439000,-589.07655033,9.731e-05,2]
[422510803,1779011439000,-650.0,9.731e-05,2]
[422510801,1779011439000,-650.0,9.731e-05,2]
[422510787,1779011439000,-650.0,9.731e-05,2]
[422510797,1779011439000,-650.0,9.731e-05,2]
[422510786,1779011439000,-180.34883654,9.731e-05,2]
[422510770,1779011439000,-166.0,9.731e-05,2]
[422510804,1779011439000,-650.0,9.731e-05,2]
[422510772,1779011439000,-166.0,9.731e-05,2]
[422510771,1779011439000,-650.0,9.731e-05,2]
[422510768,1779011439000,-650.0,9.731e-05,2]
[422510769,1779011439000,-650.0,9.731e-05,2]
[422510767,1779011439000,-650.0,9.731e-05,2]
[422510773,1779011439000,-650.0,9.731e-05,2]
[422510774,1779011439000,-166.0,9.731e-05,2]
[422510785,1779011439000,-650.0,9.731e-05,2]
[422510780,1779011439000,-650.0,9.731e-05,2]
[422510781,1779011439000,-650.0,9.731e-05,2]
[422510782,1779011439000,-180.0,9.731e-05,2]
[422510778,1779011439000,-650.0,9.731e-05,2]
[422510779,1779011439000,-650.0,9.731e-05,2]
[422510777,1779011439000,-650.0,9.731e-05,2]
[422510776,1779011439000,-650.0,9.731e-05,2]
[422510775,1779011439000,-650.0,9.731e-05,2]
[422510784,1779011439000,-180.0,9.731e-05,2]
[422510783,1779011439000,-650.0,9.731e-05,2]
[422510802,1779011439000,-650.0,9.731e-05,2]
[422510833,1779011439000,-35171.39413119,9.9e-05,2]
[422510800,1779011439000,-650.0,9.731e-05,2]
[422510830,1779011439000,-262.61531655,9.894e-05,7]
[422510829,1779011439000,-177.55723473,9.894e-05,2]
[422510832,1779011439000,-335.82966298,9.894e-05,2]
[422510835,1779011439000,-815.68936547,9.9e-05,2]
[422510836,1779011439000,-500.0,9.905e-05,2]
[422510837,1779011439000,-527718.76786074,9.94e-05,2]
[422510838,1779011439000,-335.82966298,9.982e-05,2]
[422510839,1779011439000,-1529.76301185,9.982e-05,2]
[422510840,1779011439000,-400.0,9.99e-05,4]
[422510844,1779011439000,-4676.845732,0.0001,60]
[422510841,1779011439000,-400.0,9.99e-05,2]
[422510842,1779011439000,-60000.8679481,9.999e-05,2]
[422510845,1779011439000,-160.0,0.0001,2]
[422510843,1779011439000,-2139.68589161,0.0001,2]
[422510847,1779011439000,-2069.0,0.0001,2]
[422510848,1779011439000,-559956.31154903,0.0001,2]
[422510805,1779011439000,-650.0,9.731e-05,2]
[422510831,1779011439000,-177.39731573,9.894e-05,7]
[422510825,1779011439000,-420.0,9.833e-05,2]
[422510846,1779011439000,-319.0,0.0001,2]
[422510834,1779011439000,-1000.0,9.9e-05,10]
[422510808,1779011439000,-650.0,9.731e-05,2]
[422510811,1779011439000,-246.81672306,9.741e-05,2]
[422510822,1779011439000,-1125.57906721,9.82e-05,2]
[422510810,1779011439000,-151.0,9.731e-05,2]
[422510824,1779011439000,-165.579796,9.831e-05,2]
[422510812,1779011439000,-5000.0,9.782e-05,2]
[422510817,1779011439000,-500.0,9.8e-05,2]
[422510813,1779011439000,-5000.0,9.782e-05,2]
[422510815,1779011439000,-5000.0,9.782e-05,2]
[422510821,1779011439000,-706.89036874,9.82e-05,2]
[422510816,1779011439000,-793.0,9.8e-05,2]
[422510819,1779011439000,-335.82966298,9.806e-05,2]
[422510818,1779011439000,-1991.75620114,9.801e-05,2]
[422510820,1779011439000,-281.67644325,9.82e-05,2]
[422510823,1779011439000,-84474.1067287,9.831e-05,2]
[422510828,1779011439000,-152.0,9.891e-05,7]
[422510827,1779011439000,-5000.0,9.835e-05,2]
[422510826,1779011439000,-1810.62192593,9.835e-05,2]
[422510814,1779011439000,-5000.0,9.782e-05,2]
[422510849,1779011440000,-1178.98896994,0.0001,2]
[422510859,1779011443000,-420.8168224,0.0001,2]
[422510860,1779011444000,-5000.02541797,0.0001,2]
[422510873,1779011447000,-1223.92988995,9.9e-05,2]
[422510882,1779012094000,-832.86141184,8.415e-05,2]
[422510971,1779012632000,-161.67668242,8.926e-05,2]
[422510941,1779012632000,-2575.47473491,7.301e-05,2]
[422510955,1779012632000,-5000.0,7.375e-05,2]
[422510957,1779012632000,-300.0,7.486e-05,2]
[422510953,1779012632000,-2424.52526509,7.301e-05,2]
[422510959,1779012632000,-482.90849747,7.487e-05,2]
[422510969,1779012632000,-160.0,8.926e-05,2]
[422510967,1779012632000,-160.0,8.926e-05,2]
[422510961,1779012632000,-1449.31833637,7.6e-05,2]
[422510965,1779012632000,-929.2349162,8.295e-05,2]
[422510975,1779012632000,-500.0,8.94e-05,2]
[422510973,1779012632000,-500.0,8.94e-05,2]
[422510984,1779012632000,-500.0,8.94e-05,2]
[422510982,1779012632000,-500.0,8.94e-05,2]
[422510986,1779012632000,-198.32055912,8.94e-05,2]
[422510981,1779012632000,-500.0,8.94e-05,2]
[422510963,1779012632000,-420.0,8.234e-05,2]
[422510977,1779012632000,-500.0,8.94e-05,2]
[422510979,1779012632000,-500.0,8.94e-05,2]
[422511082,1779012638000,-500.0,8.94e-05,2]
[422511079,1779012638000,-301.67944088,8.94e-05,2]
[422511078,1779012638000,-160.0,8.926e-05,2]
[422511077,1779012638000,-4167.13858816,7.228e-05,2]
[422511080,1779012638000,-500.0,8.94e-05,2]
[422511084,1779012638000,-500.0,8.94e-05,2]
[422511089,1779012638000,-500.0,8.94e-05,2]
[422511090,1779012638000,-500.0,8.94e-05,2]
[422511083,1779012638000,-500.0,8.94e-05,2]
[422511091,1779012638000,-500.0,8.94e-05,2]
[422511081,1779012638000,-500.0,8.94e-05,2]
[422511086,1779012638000,-500.0,8.94e-05,2]
[422511085,1779012638000,-500.0,8.94e-05,2]
[422511087,1779012638000,-500.0,8.94e-05,2]
[422511093,1779012638000,-500.0,8.94e-05,2]
[422511095,1779012638000,-207.0,9.057e-05,2]
[422511094,1779012638000,-536.11,8.94e-05,2]
[422511092,1779012638000,-500.0,8.94e-05,2]
[422511088,1779012638000,-500.0,8.94e-05,2]
[422511096,1779012639000,-500.0,9.367e-05,2]
[422511100,1779012639000,-151.5,9.426e-05,2]
[422511097,1779012639000,-151.5,9.426e-05,2]
[422511103,1779012639000,-500.0,9.477e-05,2]
[422511099,1779012639000,-151.5,9.426e-05,2]
[422511102,1779012639000,-203.77161685,9.426e-05,2]
[422511105,1779012639000,-146.46388897,9.487e-05,2]
[422511098,1779012639000,-151.5,9.426e-05,2]
[422511115,1779012639000,-47046.26760269,9.69e-05,2]
[422511101,1779012639000,-151.5,9.426e-05,2]
[422511107,1779012639000,-500.0,9.524e-05,2]
[422511108,1779012639000,-500.0,9.524e-05,2]
[422511111,1779012639000,-443.0,9.58e-05,2]
[422511109,1779012639000,-432.90073873,9.524e-05,2]
[422511113,1779012639000,-705.767,9.58e-05,2]
[422511106,1779012639000,-500.0,9.524e-05,2]
[422511110,1779012639000,-185.0,9.58e-05,2]
[422511112,1779012639000,-500.0,9.58e-05,2]
[422511114,1779012639000,-237.601,9.638e-05,2]
[422511104,1779012639000,-423.36813805,9.487e-05,2]
[422511134,1779012644000,-46571.90682115,9.69e-05,2]
[422511154,1779012647000,-1056.43753336,9.695e-05,2]
[422511163,1779012647000,-1056.43753336,9.695e-05,2]
[422511153,1779012647000,-1056.43753336,9.695e-05,2]
[422511162,1779012647000,-1056.43753336,9.695e-05,2]
[422511148,1779012647000,-1056.43753336,9.695e-05,2]
[422511146,1779012647000,-1056.43753336,9.695e-05,2]
[422511145,1779012647000,-6381.82557616,9.69e-05,2]
[422511152,1779012647000,-1056.43753336,9.695e-05,2]
[422511151,1779012647000,-1056.43753336,9.695e-05,2]
[422511147,1779012647000,-331.56195888,9.695e-05,2]
[422511150,1779012647000,-1056.43753336,9.695e-05,2]
[422511155,1779012647000,-1056.43753336,9.695e-05,2]
[422511149,1779012647000,-1056.43753336,9.695e-05,2]
[422511156,1779012647000,-1056.43753336,9.695e-05,2]
[422511161,1779012647000,-1056.43753336,9.695e-05,2]
[422511158,1779012647000,-496.54862231,9.695e-05,2]
[422511160,1779012647000,-625.78685143,9.695e-05,2]
[422511164,1779012647000,-1056.43753336,9.695e-05,2]
[422511159,1779012647000,-430.65068193,9.695e-05,2]
[422511166,1779012647000,-1056.43753336,9.695e-05,2]
[422511165,1779012647000,-1056.43753336,9.695e-05,2]
[422511167,1779012647000,-1056.43753336,9.695e-05,2]
[422511169,1779012647000,-253.7425319,9.696e-05,2]
[422511168,1779012647000,-5772.30534714,9.696e-05,2]
[422511170,1779012647000,-9145.54176067,9.696e-05,2]
[422511157,1779012647000,-559.88891105,9.695e-05,2]
[422511195,1779013766000,163.076488,4.153e-05,2]
[422511240,1779013831000,-623.25706274,8.091e-05,2]
[422511250,1779013831000,-3595.01643483,8.091e-05,2]
[422511247,1779013831000,-425.97873272,8.091e-05,2]
[422511338,1779013840000,-500.0,9.479e-05,2]
[422511342,1779013840000,-501.80595895,9.485e-05,2]
[422511341,1779013840000,-500.0,9.485e-05,2]
[422511340,1779013840000,-160.0,9.484e-05,2]
[422511336,1779013840000,-1122.06764667,9.388e-05,2]
[422511339,1779013840000,-161.67668242,9.484e-05,2]
[422511337,1779013840000,-500.0,9.458e-05,2]
[422511334,1779013840000,-1917.39616217,8.828e-05,2]
[422511335,1779013840000,-325.06346736,9.388e-05,2]
[422511330,1779013840000,-4362.04776971,8.173e-05,2]
[422511332,1779013840000,-468.5155152,8.298e-05,2]
[422511331,1779013840000,-300.0,8.255e-05,2]
[422511329,1779013840000,-637.95223029,8.173e-05,2]
[422511327,1779013840000,-355.74776971,8.091e-05,2]
[422511328,1779013840000,-1200.0,8.172e-05,2]
[422511333,1779013840000,-479.82886941,8.828e-05,2]
[422511344,1779013840000,-500.0,9.485e-05,2]
[422511343,1779013840000,-500.0,9.485e-05,2]
[422511346,1779013840000,-500.0,9.485e-05,2]
[422511364,1779013840000,-500.0,9.485e-05,2]
[422511362,1779013840000,-500.0,9.485e-05,2]
[422511363,1779013840000,-500.0,9.485e-05,2]
[422511361,1779013840000,-500.0,9.485e-05,2]
[422511360,1779013840000,-500.0,9.485e-05,2]
[422511357,1779013840000,-500.0,9.485e-05,2]
[422511345,1779013840000,-500.0,9.485e-05,2]
[422511355,1779013840000,-500.0,9.485e-05,2]
[422511358,1779013840000,-500.0,9.485e-05,2]
[422511352,1779013840000,-500.0,9.485e-05,2]
[422511351,1779013840000,-500.0,9.485e-05,2]
[422511354,1779013840000,-500.0,9.485e-05,2]
[422511350,1779013840000,-379.45535758,9.485e-05,2]
[422511349,1779013840000,-500.0,9.485e-05,2]
[422511347,1779013840000,-477.34114189,9.485e-05,2]
[422511356,1779013840000,-500.0,9.485e-05,2]
[422511348,1779013840000,-500.0,9.485e-05,2]
[422511353,1779013840000,-500.0,9.485e-05,2]
[422511372,1779013841000,-500.0,9.485e-05,2]
[422511374,1779013841000,-500.0,9.485e-05,2]
[422511373,1779013841000,-649.9807594,9.485e-05,2]
[422511369,1779013841000,-56.08684427,9.485e-05,2]
[422511371,1779013841000,-500.0,9.485e-05,2]
[422511367,1779013841000,-500.0,9.485e-05,2]
[422511366,1779013841000,-500.0,9.485e-05,2]
[422511368,1779013841000,-443.91315573,9.485e-05,2]
[422511365,1779013841000,-500.0,9.485e-05,2]
[422511376,1779013841000,-500.0,9.485e-05,2]
[422511370,1779013841000,-500.0,9.485e-05,2]
[422511375,1779013841000,-500.0,9.485e-05,2]
[422511379,1779013841000,-500.0,9.485e-05,2]
[422511382,1779013841000,-500.0,9.485e-05,2]
[422511377,1779013841000,-500.0,9.485e-05,2]
[422511378,1779013841000,-500.0,9.485e-05,2]
[422511381,1779013841000,-500.0,9.485e-05,2]
[422511384,1779013841000,-332.46628136,9.485e-05,2]
[422511383,1779013841000,-167.53371864,9.485e-05,2]
[422511386,1779013841000,-200.0,9.485e-05,2]
[422511385,1779013841000,-500.0,9.485e-05,2]
[422511388,1779013841000,-160.0,9.486e-05,2]
[422511389,1779013841000,-3918.88143521,9.486e-05,2]
[422511387,1779013841000,-160.0,9.486e-05,2]
[422511380,1779013841000,-500.0,9.485e-05,2]
[422511413,1779013843000,-1246.62269966,8.01e-05,2]
[422511414,1779013843000,-3753.37730034,8.01e-05,2]
[422511416,1779013843000,-760.69687761,9.486e-05,2]
[422511415,1779013843000,-4708.82519157,9.486e-05,2]
[422511418,1779013846000,-70812.06817422,9.486e-05,2]
[422511417,1779013846000,-3843.5885093,9.486e-05,2]
[422511444,1779014597000,162.36431,4.261e-05,2]
[422511572,1779015038000,-263.60596709,8.049e-05,2]
[422511567,1779015038000,-1781.04212604,7.708e-05,2]